bitfinex-derivatives/quotes_ETHF0:USTF0_20240817
["timestamp","ask_amount","ask_price","bid_price","bid_amount"]
[1723913383038,8.17018,2611.9,2611.8,0.00573778]
[1723913383354,10.17579034,2611.9,2611.8,0.00573778]
[1723913383749,8.17018,2611.9,2611.8,0.00573778]
[1723913384438,10.17509256,2611.9,2611.8,0.00573778]
[1723913384749,15.17509256,2611.9,2611.8,0.00573778]
[1723913386253,13.17018,2611.9,2611.8,0.00573778]
[1723913386554,15.17509256,2611.9,2611.8,0.00573778]
[1723913386944,13.17018,2611.9,2611.8,0.00573778]
[1723913388351,9.34138,2611.9,2611.8,0.00573778]
[1723913388553,13.17018,2611.9,2611.8,0.00573778]
[1723913388850,15.17509256,2611.9,2611.8,0.00573778]
[1723913389246,13.17018,2611.9,2611.8,0.00573778]
[1723913389452,1.4355,2612.0,2611.8,1.10773778]
[1723913389657,1.4355,2612.0,2611.9,1.43554]
[1723913389850,1.4355,2612.0,2611.9,1.79794]
[1723913390454,5.2643,2612.0,2611.9,0.3624]
[1723913391057,1.4355,2612.0,2611.9,0.3624]
[1723913391554,1.43554,2611.9,2611.8,0.37943778]
[1723913391753,1.43552,2612.0,2611.8,1.81502778]
[1723913391961,1.43552,2612.0,2611.9,1.43554]
[1723913392157,0.716,2612.1,2611.9,1.4566]
[1723913392158,2.15146,2612.1,2611.9,1.4566]
[1723913392662,2.15146,2612.1,2611.9,2.89211]
[1723913393266,1.43548,2612.0,2611.9,2.89211]
[1723913393558,1.43548,2612.0,2611.9,1.79011]
[1723913395457,2.01557035,2612.4,2611.9,8.4932]
[1723913395652,1.44593779,2612.4,2612.3,1.43532]
[1723913395959,5.27393779,2612.4,2612.3,1.43532]
[1723913396865,5.27393779,2612.4,2612.3,1.77722]
[1723913397172,1.44593779,2612.4,2612.3,1.77722]
[1723913397364,5.27393779,2612.4,2612.3,1.77722]
[1723913398165,0.01065779,2612.4,2612.3,1.77722]
[1723913398762,5.27391779,2612.4,2612.3,1.77722]
[1723913400060,0.01065779,2612.4,2612.3,6.08702]
[1723913400564,0.01065779,2612.4,2612.3,7.52234]
[1723913400865,0.01065779,2612.4,2612.3,6.08702]
[1723913401964,0.01065779,2612.4,2612.3,9.91502]
[1723913403657,3.79078256,2613.0,2612.9,1.43499]
[1723913403658,2.00491256,2613.0,2612.9,1.43499]
[1723913403865,2.00491256,2613.6,2613.5,1.43466]
[1723913404069,1.829,2613.7,2613.6,1.4346]
[1723913404362,6.71445,2613.7,2613.3,1.102]
[1723913404563,2.88805,2613.7,2613.5,1.43461]
[1723913404766,2.89259775,2613.7,2613.5,1.43791644]
[1723913406168,0.00454775,2613.7,2613.6,1.4346]
[1723913406373,0.00454775,2613.7,2613.6,1.8006]
[1723913408768,0.00573778,2613.9,2613.8,1.43449]
[1723913409358,0.00573778,2613.9,2613.8,1.80339]
[1723913409761,0.00893233,2613.9,2613.8,1.80339]
[1723913417580,1.44337233,2613.9,2613.8,0.3689]
[1723913419377,0.00893233,2613.9,2613.8,7.06348]
[1723913419705,4.088,2614.4,2613.8,7.06348]
[1723913419706,5.52218,2614.4,2614.2,1.43423]
[1723913419985,5.52218,2614.4,2613.8,5.62899]
[1723913419986,1.43376,2615.2,2615.0,1.43383]
[1723913420176,5.25778,2615.2,2615.0,1.4338]
[1723913420377,1.43372,2615.2,2615.0,1.4338]
[1723913420582,0.00475549,2615.2,2615.1,1.43376]
[1723913420889,1.43847549,2615.2,2615.0,1.43379]
[1723913421278,1.43378,2615.1,2614.9,1.43385]
[1723913421678,1.43851549,2615.2,2614.9,1.43385]
[1723913422487,1.43851549,2615.2,2615.0,1.43383]
[1723913423074,1.43378,2615.1,2615.0,1.43383]
[1723913424285,1.43378,2615.1,2614.9,1.43385]
[1723913424978,1.43383,2615.0,2614.9,1.43385]
[1723913425987,1.43383,2615.0,2614.9,1.43389]
[1723913426886,1.43383,2615.0,2614.8,2.50184778]
[1723913427088,1.43389,2614.9,2614.8,1.43964778]
[1723913427983,1.43386,2615.0,2614.8,1.43964778]
[1723913428190,1.43381,2615.1,2614.9,1.43386]
[1723913428384,1.43389,2614.9,2614.8,2.16015778]
[1723913429286,1.43389,2614.9,2614.8,0.72623778]
[1723913429486,1.43389,2614.9,2614.8,0.38263778]
[1723913430280,1.43389,2614.9,2614.8,1.81657778]
[1723913430689,1.43389,2614.9,2614.8,0.38263778]
[1723913432393,2.86778,2614.9,2614.8,0.00573778]
[1723913432590,6.69178,2614.9,2614.8,0.00573778]
[1723913434707,1.43382,2615.1,2614.9,1.43389]
[1723913434991,1.43378,2615.1,2615.0,1.0795]
[1723913436187,1.43378,2615.1,2614.8,0.00573778]
[1723913436188,1.43389,2614.9,2614.8,1.43965778]
[1723913436589,1.43389,2614.9,2614.8,0.00573778]
[1723913436797,1.43388,2615.0,2614.8,1.43967778]
[1723913437299,1.43388,2615.0,2614.8,1.81257778]
[1723913437596,1.43388,2615.0,2614.9,1.43389]
[1723913437994,0.00475549,2615.2,2615.1,1.43378]
[1723913438294,0.00475549,2615.2,2615.1,4.64158]
[1723913438496,0.00475549,2615.2,2615.1,8.46558]
[1723913438695,0.00475549,2615.2,2615.1,8.82608]
[1723913439687,0.00475549,2615.2,2615.1,10.25986]
[1723913440289,0.00475549,2615.2,2615.1,8.82608]
[1723913456897,0.00475549,2615.2,2615.1,5.61828]
[1723913457222,0.00475549,2615.2,2615.1,8.82608]
[1723913461005,0.00475549,2615.2,2615.1,9.12334658]
[1723913462514,0.00573778,2615.4,2615.3,1.43367]
[1723913462700,0.00573778,2615.4,2615.3,4.07767]
[1723913463108,0.00573778,2615.4,2615.3,4.44117]
[1723913463501,0.00921864,2615.4,2615.3,4.44117]
[1723913464413,0.7118,2615.9,2615.8,1.4334]
[1723913464605,2.50914536,2616.3,2615.8,3.2078]
[1723913464606,0.3612,2616.3,2615.8,3.2078]
[1723913464801,0.3612,2616.3,2616.1,1.43318]
[1723913464802,0.376,2616.2,2616.1,1.43318]
[1723913465400,0.3577,2616.3,2616.2,1.43318]
[1723913465603,0.376,2616.5,2616.2,1.43318]
[1723913465808,0.00301291,2616.3,2616.2,1.43318]
[1723913467917,0.00301291,2616.3,2616.2,5.25558]
[1723913469217,0.00301291,2616.3,2616.2,13.38144494]
[1723913469914,2.00491256,2617.2,2616.7,1.43291]
[1723913470211,5.52062,2617.3,2616.8,2.644]
[1723913470212,6.09291256,2617.3,2616.8,2.644]
[1723913470419,0.3604,2617.2,2616.9,1.4328]
[1723913470611,0.7047,2617.2,2616.8,4.81372]
[1723913470911,1.43274,2617.1,2616.8,2.644]
[1723913471110,1.43274,2617.1,2616.8,4.07684]
[1723913471310,0.70873107,2617.2,2616.8,2.644]
[1723913471311,2.14140107,2617.2,2616.8,2.644]
[1723913471519,1.4327,2617.1,2616.8,4.07682]
[1723913471813,0.70873107,2617.2,2616.8,2.644]
[1723913472116,0.70873107,2617.2,2616.9,2.644]
[1723913472418,1.43272,2617.1,2616.9,2.644]
[1723913472714,1.43274,2617.0,2616.9,2.644]
[1723913473612,0.70873107,2617.2,2616.9,2.644]
[1723913473804,0.70873107,2617.2,2617.0,1.43274]
[1723913474008,2.14138107,2617.2,2617.0,1.43274]
[1723913474317,2.14136107,2617.2,2617.1,1.43269]
[1723913474615,1.43269,2617.1,2617.0,1.43271]
[1723913475011,2.14138107,2617.2,2617.0,1.43271]
[1723913475209,2.14138107,2617.2,2617.1,1.43269]
[1723913475615,2.14138107,2617.2,2617.0,1.43271]
[1723913475813,1.43269,2617.1,2616.9,4.07677]
[1723913476001,0.70873107,2617.2,2616.9,2.644]
[1723913476002,3.92162204,2617.0,2616.9,2.644]
[1723913476209,1.43285,2616.8,2616.7,0.00573778]
[1723913476404,2.8657,2616.8,2616.7,0.00573778]
[1723913476609,7.0461,2616.8,2616.7,0.00573778]
[1723913477416,1.43318,2616.2,2616.1,0.00474345]
[1723913477610,2.86636,2616.2,2616.1,0.00474345]
[1723913477819,6.68876,2616.2,2616.1,0.00474345]
[1723913478117,1.43318,2616.2,2616.1,0.00474345]
[1723913479117,5.25558,2616.2,2616.1,0.00474345]
[1723913479819,3.8224,2616.2,2616.1,0.00474345]
[1723913480017,5.25558,2616.2,2616.1,0.00474345]
[1723913480323,8.24286917,2616.2,2616.1,0.00474345]
[1723913480617,8.61006917,2616.2,2616.1,0.00474345]
[1723913481011,5.62278,2616.2,2616.1,0.00474345]
[1723913481211,5.62278,2616.2,2616.1,1.43798345]
[1723913481212,3.8224,2616.2,2616.1,1.43798345]
[1723913481421,2.98968689,2616.3,2616.1,0.00474345]
[1723913481721,0.3672,2616.2,2616.1,0.00474345]
[1723913482718,0.3672,2616.2,2616.1,1.43798345]
[1723913483221,0.3672,2616.2,2616.1,0.00474345]
[1723913484011,1.80038,2616.2,2616.1,0.00474345]
[1723913484520,0.3672,2616.2,2616.1,0.00474345]
[1723913484826,0.3672,2616.2,2616.1,1.43798345]
[1723913485617,0.00573778,2616.4,2616.3,1.43313]
[1723913486135,0.00573778,2616.4,2616.3,4.07713]
[1723913486421,0.00573778,2616.4,2616.3,2.644]
[1723913486615,0.00573778,2616.4,2616.1,0.00474345]
[1723913486820,0.00573778,2616.4,2616.3,1.43313]
[1723913487815,4.64058,2617.0,2616.3,1.43313]
[1723913487816,5.6997321,2617.3,2616.3,14.6742]
[1723913488014,0.71823107,2617.2,2617.1,1.43269]
[1723913488324,0.36843107,2617.2,2617.1,1.43269]
[1723913488523,0.00403107,2617.2,2617.1,5.25349]
[1723913488721,0.00403107,2617.2,2617.1,7.89749]
[1723913489213,0.00403107,2617.2,2617.1,4.07669]
[1723913491028,0.3644,2617.7,2617.1,7.89749]
[1723913491228,0.3644,2617.7,2617.6,1.43241]
[1723913491419,1.99354568,2618.1,2618.0,1.4322]
[1723913491618,3.2078,2618.6,2618.0,1.4322]
[1723913491619,1.43207,2618.3,2618.0,1.43214]
[1723913491926,1.43217,2618.1,2618.0,0.00436502]
[1723913492127,3.8192,2618.2,2618.0,0.00436502]
[1723913492324,3.8192,2618.1,2618.0,0.00436502]
[1723913492531,5.60364,2618.1,2618.0,0.00436502]
[1723913494221,0.3523,2618.1,2618.0,1.43656502]
[1723913495739,0.00392992,2618.3,2618.0,0.00436502]
[1723913495940,1.43595992,2618.3,2618.1,1.43214]
[1723913496639,0.00392992,2618.3,2618.1,1.43214]
[1723913497031,1.43596992,2618.3,2618.0,1.43652502]
[1723913497236,1.43209,2618.2,2618.0,1.43652502]
[1723913497439,0.00392992,2618.3,2618.0,0.00436502]
[1723913497744,0.00392992,2618.3,2618.2,1.43209]
[1723913498046,0.00392992,2618.3,2618.1,1.43214]
[1723913498251,0.00392992,2618.3,2618.2,1.43209]
[1723913498741,5.25517992,2618.3,2618.1,1.43214]
[1723913498944,1.43212,2618.2,2618.0,1.43653502]
[1723913499149,1.43598992,2618.3,2618.1,1.43213]
[1723913499537,1.43595992,2618.3,2618.1,1.43213]
[1723913500541,1.43595992,2618.3,2618.0,0.00436502]
[1723913500741,1.43209,2618.2,2618.0,1.43653502]
[1723913502047,1.43214,2618.1,2618.0,0.00436502]
[1723913503341,0.00392992,2618.3,2618.2,1.43209]
[1723913503648,0.00392992,2618.3,2618.2,4.07609]
[1723913504944,0.00392992,2618.3,2618.2,4.44079]
[1723913506252,0.00392992,2618.3,2618.2,0.3647]
[1723913506445,1.43595992,2618.3,2618.1,3.2078]
[1723913506642,1.43208,2618.2,2618.1,3.2078]
[1723913506835,1.43208,2618.2,2618.0,2.99506502]
[1723913507052,1.43214,2618.1,2618.0,2.64836502]
[1723913507752,1.43212,2618.2,2618.0,4.08055502]
[1723913508045,1.43214,2618.1,2618.0,2.64836502]
[1723913510235,0.00392992,2618.3,2618.2,1.43208]
[1723913510443,7.87659447,2619.4,2618.7,1.43178]
[1723913510741,3.2078,2618.9,2618.8,0.00573778]
[1723913510943,11.07123,2618.9,2618.8,0.00573778]
[1723913511139,9.88963,2618.9,2618.8,0.00573778]
[1723913511343,8.4579,2618.9,2618.8,0.00573778]
[1723913511538,15.25375515,2618.9,2618.8,0.00573778]
[1723913511749,13.82205515,2618.9,2618.8,0.00573778]
[1723913512148,15.25375515,2618.9,2618.8,0.00573778]
[1723913512446,13.82205515,2618.9,2618.8,0.00573778]
[1723913513147,8.82205515,2618.9,2618.8,0.00573778]
[1723913513953,0.00395515,2618.9,2618.8,1.43749778]
[1723913514140,7.87657447,2619.4,2619.0,1.43161]
[1723913514343,6.44512447,2619.4,2619.1,1.43157]
[1723913514544,6.44512447,2619.4,2619.2,1.43153]
[1723913514744,6.44512447,2619.4,2618.9,3.561]
[1723913514943,6.44512447,2619.4,2619.3,1.43148]
[1723913515242,6.4494385,2619.4,2619.1,1.43157]
[1723913515445,7.8808785,2619.4,2619.1,1.43157]
[1723913515742,6.4494385,2619.4,2618.9,3.561]
[1723913515947,6.4494385,2619.4,2619.2,1.43152]
[1723913516448,6.4494385,2619.4,2619.1,1.43155]
[1723913517153,7.8808685,2619.4,2619.1,1.43155]
[1723913517351,7.8809085,2619.4,2619.0,1.43161]
[1723913517657,1.43149,2619.3,2619.0,1.43161]
[1723913518048,6.4494385,2619.4,2619.3,1.43148]
[1723913518355,4.63857,2620.6,2619.3,2.644]
[1723913518546,4.63857,2620.6,2620.1,2.644]
[1723913518547,0.7174,2620.5,2620.1,2.644]
[1723913518743,0.7174,2620.5,2619.2,12.13252594]
[1723913518744,3.2078,2620.3,2619.2,12.13252594]
[1723913519055,0.7174,2620.5,2619.2,12.13252594]
[1723913519056,1.43122,2619.8,2619.5,1.43137]
[1723913519242,1.43096,2620.3,2619.6,2.644]
[1723913519450,1.43096,2620.3,2619.6,2.64768837]
[1723913519451,0.00491866,2620.3,2619.6,2.64768837]
[1723913519647,3.2078,2620.1,2619.6,2.64768837]
[1723913519852,0.00491866,2620.3,2619.6,2.64768837]
[1723913520050,1.43123,2619.8,2619.6,2.64768837]
[1723913520252,1.43104,2620.1,2619.6,2.64768837]
[1723913520458,1.43126,2619.7,2619.6,0.00368837]
[1723913520652,2.86252,2619.7,2619.6,0.00368837]
[1723913520959,11.68012,2619.7,2619.6,0.00368837]
[1723913521345,6.68012,2619.7,2619.6,0.00368837]
[1723913521550,11.68012,2619.7,2619.6,0.00368837]
[1723913522846,1.43162,2619.1,2618.9,3.0216]
[1723913523057,1.43157,2619.2,2618.9,4.4533]
[1723913523264,3.2078,2620.0,2619.1,5.8518]
[1723913523555,3.2078,2620.0,2619.6,2.644]
[1723913523762,3.2078,2620.0,2619.8,1.43121]
[1723913524057,3.2078,2620.0,2619.8,1.43116]
[1723913524358,3.2078,2620.0,2619.9,1.43115]
[1723913524752,3.2078,2620.0,2619.7,0.3426]
[1723913525354,3.2078,2620.0,2619.8,1.43117]
[1723913526262,4.6389,2620.0,2619.8,1.43117]
[1723913526448,3.2078,2620.0,2619.8,1.43117]
[1723913526648,0.00491866,2620.3,2619.9,6.4608]
[1723913526860,0.00491866,2620.3,2620.2,1.43099]
[1723913528258,0.00491866,2620.3,2620.2,5.24779]
[1723913528482,4.6379,2621.9,2621.2,1.43044]
[1723913528653,3.2078,2623.5,2621.8,8.4958]
[1723913528854,3.2078,2624.1,2623.1,3.2078]
[1723913529053,1.04210001,2623.3,2623.1,5.8518]
[1723913529249,0.6157,2624.9,2623.3,3.2078]
[1723913529452,4.99662184,2627.3,2624.8,4.63623]
[1723913529453,0.30725365,2626.0,2624.8,4.63623]
[1723913529661,3.2078,2626.8,2624.8,4.63623]
[1723913529662,0.00357111,2626.8,2625.9,3.5886]
[1723913529857,8.14028402,2628.9,2626.6,3.2078]
[1723913529858,3.2078,2627.8,2626.6,3.2078]
[1723913530064,3.2078,2627.2,2626.6,6.7158]
[1723913530368,7.97919996,2628.5,2627.0,3.09787808]
[1723913530369,7.10089996,2628.5,2627.0,3.09787808]
[1723913530557,1.34368,2627.4,2627.1,3.508]
[1723913530865,0.00471628,2627.4,2627.3,3.2078]
[1723913531062,0.58281628,2627.4,2627.3,3.2078]
[1723913531367,1.92649628,2627.4,2626.8,3.2078]
[1723913531557,1.92649628,2627.4,2626.5,3.508]
[1723913531558,1.34368,2626.9,2626.2,3.508]
[1723913531762,1.34368,2626.2,2625.9,3.2111068]
[1723913531961,3.2078,2627.2,2625.9,3.2111068]
[1723913531962,1.34368,2626.1,2625.9,3.2111068]
[1723913532156,1.34368,2626.0,2625.9,3.2111068]
[1723913532968,1.92178,2626.0,2625.9,3.2111068]
[1723913533169,3.7768775,2626.0,2625.3,1.86412]
[1723913533357,3.7768775,2626.0,2625.1,3.2078]
[1723913533555,3.2078,2625.7,2625.1,3.2078]
[1723913533754,3.7768775,2626.0,2625.1,3.2078]
[1723913534164,3.2078,2625.7,2625.1,3.21213419]
[1723913534558,3.7768775,2625.7,2625.3,0.0057157]
[1723913534958,7.5856775,2625.7,2625.3,0.0057157]
[1723913535168,3.8088,2625.6,2625.3,0.0057157]
[1723913535367,3.2078,2625.5,2624.0,5.34]
[1723913535559,3.2078,2624.8,2623.9,3.2078]
[1723913535759,3.2078,2624.8,2624.3,1.42872]
[1723913536064,3.7768775,2624.8,2624.3,1.42872]
[1723913536253,3.7768775,2624.8,2624.4,1.42869]
[1723913536456,3.78017754,2624.8,2624.5,1.42865]
[1723913536655,4e-08,2624.8,2624.7,2.85708]
[1723913536968,1.42765,2626.4,2624.7,1.4285]
[1723913537159,1.2629775,2626.3,2625.2,3.2078]
[1723913537469,0.9148775,2626.3,2625.5,4.63589]
[1723913537766,0.91982348,2626.3,2625.7,1.42799]
[1723913537956,0.91982348,2626.3,2625.7,1.42798]
[1723913538161,0.0056421,2626.2,2625.4,3.2078]
[1723913538368,0.0056421,2626.2,2625.7,0.0057157]
[1723913538667,0.5747196,2626.2,2625.7,0.0057157]
[1723913539067,0.5747196,2626.2,2625.7,1.4337057]
[1723913539568,0.5747196,2626.2,2625.7,1.4336757]
[1723913539769,0.5747196,2626.2,2625.7,0.0057157]
[1723913540571,3.2078,2626.0,2625.7,0.0057157]
[1723913540766,3.2078,2626.0,2624.4,9.37828542]
[1723913540767,1.42809,2625.6,2624.5,3.2078]
[1723913540967,3.2078,2625.2,2624.6,1.42856]
[1723913541161,0.5633618,2625.2,2624.5,4.63643]
[1723913541660,1.42838,2625.0,2624.4,5.34068542]
[1723913541861,0.5633618,2625.2,2624.4,5.34068542]
[1723913541862,3.2078,2624.8,2624.4,5.34068542]
[1723913542159,1.42839,2625.0,2624.4,5.34640112]
[1723913542358,3.2078,2624.8,2624.4,5.34640112]
[1723913542560,4.63632,2624.8,2624.4,5.34640112]
[1723913542868,5.1996818,2624.8,2624.4,5.34640112]
[1723913543269,1.9918818,2624.8,2624.4,8.55420112]
[1723913543969,0.5633618,2624.8,2624.4,3.21820112]
[1723913544473,3.2078,2624.5,2624.4,0.01040112]
[1723913544875,14.0102118,2624.5,2624.4,0.01040112]
[1723913545167,0.0057157,2625.0,2624.4,0.01040112]
[1723913545372,1.42846,2624.9,2624.4,0.01040112]
[1723913545577,0.5690775,2625.0,2624.4,0.01040112]
[1723913545774,4.63632,2624.8,2624.4,0.01040112]
[1723913546076,4.63645,2624.5,2624.4,0.01040112]
[1723913546268,8.44685,2624.5,2624.4,0.01040112]
[1723913546471,14.0102118,2624.5,2624.4,0.01040112]
[1723913546970,7.5815618,2624.5,2624.4,0.01040112]
[1723913547177,3.2078,2624.8,2624.4,0.01040112]
[1723913547373,1.42865,2624.5,2624.4,0.01040112]
[1723913547674,1.42859,2624.6,2624.4,0.01040112]
[1723913547866,3.8104,2624.6,2624.4,0.01040112]
[1723913548174,3.8104,2624.5,2624.4,0.01040112]
[1723913548564,4.3737618,2624.5,2624.4,0.01040112]
[1723913548765,0.5633618,2624.5,2624.4,0.01040112]
[1723913548970,1.9920118,2624.5,2624.4,0.01040112]
[1723913549365,4.3737618,2624.5,2624.4,0.01040112]
[1723913550062,5.8024118,2624.5,2624.4,0.01040112]
[1723913550783,1.42883,2624.2,2623.6,1.42909]
[1723913551072,3.2078,2623.7,2623.2,8.0384264]
[1723913551279,4.63692,2623.7,2623.2,8.0384264]
[1723913551476,1.9924818,2623.7,2623.2,9.4677664]
[1723913551671,0.56728137,2623.7,2623.2,9.3785005]
[1723913551869,1.99636137,2623.7,2623.2,9.3842162]
[1723913552068,1.99636137,2623.7,2623.2,1.43859949]
[1723913552279,0.56728137,2623.7,2623.3,1.42929]
[1723913552575,0.56728137,2623.7,2623.2,3.21706949]
[1723913552776,0.56728137,2623.7,2623.4,1.4292]
[1723913553170,0.56728137,2623.7,2623.5,1.42918]
[1723913553481,0.56728137,2623.7,2623.2,3.21706949]
[1723913553670,0.56728137,2623.7,2623.4,1.42922]
[1723913554374,0.56728137,2623.7,2623.5,1.42918]
[1723913554578,3.5864,2624.5,2624.1,1.42884]
[1723913554779,0.9419618,2624.5,2624.1,1.42884]
[1723913554977,0.9419618,2624.5,2624.2,1.42881]
[1723913555279,0.9419618,2624.5,2624.2,1.42878]
[1723913555668,0.94602545,2624.5,2624.2,1.42878]
[1723913555878,0.94602545,2624.5,2624.3,1.42872]
[1723913556079,0.94602545,2624.5,2624.4,1.4287]
[1723913556080,0.56742545,2624.5,2624.4,1.4287]
[1723913556581,0.00406365,2624.5,2624.4,1.4287]
[1723913556882,0.00406365,2624.5,2624.4,5.2391]
[1723913558873,0.00406365,2624.5,2624.4,10.2391]
[1723913559077,0.00406365,2624.5,2624.4,3.8104]
[1723913559275,0.00406365,2624.5,2624.3,4.63653]
[1723913559581,9.01429545,2624.5,2624.0,1.4289]
[1723913559781,5.20389545,2624.5,2624.0,1.4289]
[1723913559974,1.42879,2624.3,2623.8,1.42899]
[1723913560478,1.9921518,2624.3,2623.8,1.42899]
[1723913560876,1.42886,2624.1,2623.5,3.2078]
[1723913561069,3.2078,2624.2,2623.6,1.42909]
[1723913561070,1.42892,2624.0,2623.6,1.42909]
[1723913561279,1.42897,2623.9,2623.5,4.63696]
[1723913561480,1.42887,2624.1,2623.5,3.2078]
[1723913561676,1.42894,2624.0,2623.5,4.63696]
[1723913561982,1.9922118,2624.2,2623.7,1.42906]
[1723913562183,0.5633618,2624.2,2623.9,1.42894]
[1723913562381,0.5633618,2624.2,2623.8,1.42899]
[1723913562581,0.5633618,2624.2,2624.0,1.42891]
[1723913562886,0.5633618,2624.2,2623.9,1.42895]
[1723913563184,0.5633618,2624.2,2623.5,3.2078]
[1723913563389,0.5633618,2624.2,2624.1,1.42886]
[1723913563778,0.5633618,2624.2,2623.8,3.2078]
[1723913564285,0.5633618,2624.2,2624.1,1.42886]
[1723913565078,0.5633618,2624.2,2623.8,3.2078]
[1723913565079,0.5633618,2624.2,2623.9,1.42895]
[1723913565589,0.5633618,2624.2,2623.8,3.2078]
[1723913566083,0.5633618,2624.2,2623.9,1.42897]
[1723913566385,0.5633618,2624.2,2624.0,1.42886]
[1723913567180,1.9921718,2624.2,2623.8,3.2078]
[1723913567482,0.5633618,2624.2,2623.9,1.42894]
[1723913567885,0.5633618,2624.2,2624.0,1.42891]
[1723913568083,0.5633618,2624.2,2624.1,1.42886]
[1723913568281,0.5633618,2624.2,2623.8,3.2078]
[1723913568282,0.5633618,2624.2,2624.0,1.42888]
[1723913568788,0.5633618,2624.2,2624.1,1.42886]
[1723913569586,1.26346224,2624.2,2624.1,1.42886]
[1723913569984,2.02058418,2624.2,2624.0,1.42889]
[1723913570285,2.02058418,2624.2,2624.1,1.42886]
[1723913572384,0.00406365,2624.5,2624.4,1.4287]
[1723913574281,0.69251372,2624.5,2624.4,1.4287]
[1723913575988,1.25587552,2624.5,2624.4,1.4287]
[1723913576488,5.06627552,2624.5,2623.8,3.2078]
[1723913576680,1.42878,2624.3,2623.8,3.2078]
[1723913576879,1.42886,2624.2,2623.9,1.42895]
[1723913577085,1.42887,2624.1,2623.9,1.42895]
[1723913577281,1.42887,2624.1,2623.8,3.2078]
[1723913577282,1.42889,2624.1,2623.8,4.63679]
[1723913577480,4.75266673,2623.9,2623.3,11.97253132]
[1723913577676,1.42903,2623.8,2623.6,1.4291]
[1723913578088,0.5633618,2623.8,2623.6,1.4291]
[1723913578289,0.5633618,2623.8,2623.7,1.42908]
[1723913578488,1.9923918,2623.8,2623.6,1.4291]
[1723913578689,0.5633618,2623.8,2623.1,1.42939]
[1723913578894,0.5633618,2623.8,2623.7,1.42908]
[1723913579894,1.54486673,2623.9,2623.8,1.42903]
[1723913580089,1.13689548,2623.9,2623.8,13.09829]
[1723913580595,1.13689548,2623.9,2623.8,11.66926]
[1723913580896,1.13689548,2623.9,2623.8,6.66926]
[1723913581089,1.13689548,2623.9,2623.8,1.42903]
[1723913581791,1.70025728,2623.9,2623.8,1.42903]
[1723913582501,1.70025728,2623.9,2623.7,1.42905]
[1723913582502,4.90805728,2623.9,2623.7,1.42905]
[1723913582692,1.70025728,2623.9,2623.8,1.42903]
[1723913583689,1.70025728,2623.9,2623.3,4.63706]
[1723913583894,1.70025728,2623.9,2623.8,1.42903]
[1723913584490,1.70025728,2623.9,2623.7,1.42904]
[1723913584692,1.70025728,2623.9,2623.3,3.2078]
[1723913584693,1.42905,2623.8,2623.3,3.2078]
[1723913584886,4.90805728,2623.9,2623.5,1.42917]
[1723913585093,1.42906,2623.8,2623.5,1.42917]
[1723913585389,1.42903,2623.8,2623.5,1.42917]
[1723913585593,0.5633618,2623.8,2623.4,1.42921]
[1723913585788,0.5633618,2623.8,2623.3,3.2078]
[1723913586189,1.42908,2623.7,2623.5,1.42916]
[1723913586391,1.42913,2623.6,2623.4,1.42922]
[1723913586597,1.42911,2623.7,2623.5,1.42918]
[1723913586781,1.42911,2623.7,2623.3,3.2078]
[1723913586782,1.42911,2623.7,2623.4,1.42921]
[1723913586986,1.9924718,2623.7,2623.4,1.42921]
[1723913587199,1.9924718,2623.7,2623.5,1.42918]
[1723913587498,1.42915,2623.6,2623.4,1.42922]
[1723913587800,1.42914,2623.6,2623.4,1.42922]
[1723913588100,1.9925018,2623.6,2623.4,1.42922]
[1723913588299,1.42924,2623.4,2623.3,3.2078]
[1723913588601,1.4293,2623.3,2623.2,0.00926949]
[1723913588797,6.0664,2623.3,2623.2,0.00926949]
[1723913588998,9.0124618,2623.3,2623.2,0.00926949]
[1723913589494,1.42949,2623.0,2622.4,3.2078]
[1723913589697,1.42947,2623.0,2622.4,4.63756]
[1723913589993,1.51775796,2622.8,2622.7,1.42963]
[1723913590390,1.42965,2622.7,2622.5,1.42969]
[1723913590587,1.42965,2622.7,2622.5,1.43275536]
[1723913590890,1.9930118,2622.7,2622.5,1.43275536]
[1723913591098,0.5633618,2622.7,2622.6,1.42968]
[1723913591293,1.9930118,2622.7,2622.5,1.43276536]
[1723913591491,1.9930118,2622.7,2622.6,1.42968]
[1723913591492,0.5633618,2622.7,2622.6,1.42968]
[1723913591696,0.5633618,2622.7,2622.6,2.85936]
[1723913592795,1.51775796,2622.8,2622.7,2.85926]
[1723913593102,1.51775796,2622.8,2622.7,11.30949]
[1723913593393,2.08111976,2622.8,2622.7,1.42963]
[1723913593593,5.89391976,2622.8,2622.7,1.42963]
[1723913593798,1.42968,2622.6,2622.5,0.00306536]
[1723913593986,0.00331953,2622.6,2622.5,0.00306536]
[1723913594188,0.56668133,2622.6,2622.5,1.43279536]
[1723913595100,5.80916133,2622.6,2622.5,0.00306536]
[1723913595401,1.42977,2622.5,2622.3,1.4355357]
[1723913595701,1.42979,2622.4,2622.3,0.0057157]
[1723913595888,1.42975,2622.5,2622.3,1.4355357]
[1723913596297,1.9931118,2622.5,2622.3,1.43873262]
[1723913596600,0.00331953,2622.6,2622.5,1.42973]
[1723913596791,0.56668133,2622.6,2622.5,1.42973]
[1723913597690,0.56668133,2622.6,2622.5,2.85946]
[1723913598001,1.32320497,2622.6,2622.5,1.42973]
[1723913599099,0.56668133,2622.6,2622.5,1.42973]
[1723913604101,4.37948133,2622.6,2622.3,0.00891262]
[1723913604303,0.3739,2622.5,2622.4,1.42979]
[1723913604824,4.7508618,2622.5,2622.4,1.42979]
[1723913605505,0.00331953,2622.6,2622.5,2.85946]
[1723913605716,0.00025417,2622.6,2622.5,8.10199]
[1723913605900,0.3739,2623.4,2622.7,1.42959]
[1723913606206,0.9372618,2623.4,2623.3,1.4293]
[1723913607009,0.94205458,2623.4,2623.3,1.4293]
[1723913607409,2.37129458,2623.4,2623.2,1.42933]
[1723913607719,1.4293,2623.3,2623.1,1.42937]
[1723913607915,1.4293,2623.3,2623.1,1.42938]
[1723913608212,1.42944,2623.1,2622.9,1.42949]
[1723913608605,1.42946,2623.0,2622.8,1.42953]
[1723913608805,1.42949,2623.0,2622.5,3.2078]
[1723913609005,1.9928518,2623.0,2622.8,1.42954]